Cogmind - Beta 16 @@@ ROGUE MODE // 2026.01.07 @ 23:09:05 Player: jam Result: Destroyed by G-34 Mercenary with Small Laser Performance ------------- Evolutions (1) 500 Regions Visited (2) 400 Robots Destroyed (56) 280 Value Destroyed (1392) 1392 Prototype IDs (4) 80 Alien Tech Used (0) 0 Bonus (0) 0 TOTAL SCORE: 2652 Bonus ------- None Cogmind --------- Core Integrity 0/400 Matter 0/300 Energy 280/280 System Corruption 0% Temperature Cool (6) Movement Treading (200) Ox1 Location -9/Materials Parts ------- > --- POWER (1) -------- Heavy Ion Engine > --- PROPULSION (3) --- Light Treads Light Treads Improved Treads > --- UTILITY (3) ------ High-capacity Storage Unit Improved Targeting Computer Hacking Suite > --- WEAPON (2) ------- Heavy Assault Rifle Assault Cannon > --- INVENTORY (20) --- Improved Ion Engine Improved Ion Engine Reinforced Ion Engine Light Treads Large Storage Unit Improved Terrain Scanner Improved Targeting Computer Improved Targeting Computer Improved Targeting Computer Medium Armor Plating Medium Armor Plating Hardened Light Armor Plating Particle Cannon Particle Cannon Advanced Beam Cannon Heavy Assault Rifle Assault Cannon Assault Cannon Peak State ------------ > --- POWER ------------ Heavy Ion Engine > --- PROPULSION ------- Light Treads Improved Treads Improved Treads > --- UTILITY ---------- High-capacity Storage Unit Improved Targeting Computer Hacking Suite > --- WEAPON ----------- Advanced Beam Cannon Assault Cannon > --- INVENTORY -------- Improved Ion Engine Improved Ion Engine Reinforced Ion Engine Light Treads Light Treads Large Storage Unit Improved Terrain Scanner Improved Targeting Computer Improved Targeting Computer Improved Targeting Computer Improved Targeting Computer Medium Armor Plating Medium Armor Plating Hardened Light Armor Plating Particle Cannon Particle Cannon Heavy Assault Rifle Heavy Assault Rifle Assault Cannon Assault Cannon [Rating: 24] Favorites ----------- Power Light Nuclear Core Engine Heavy Ion Engine Power Core Light Nuclear Core Propulsion Light Treads Treads Light Treads Utility Improved Targeting Computer Device Seismic Detector Storage High-capacity Storage Unit Processor Improved Targeting Computer Hackware Hacking Suite Weapon Assault Cannon Energy Gun Improved Medium Laser Energy Cannon Advanced Beam Cannon Ballistic Gun Heavy Assault Rifle Ballistic Cannon Assault Cannon Build | -11 -10 -9 ------- Run | Yrd Mat Mat Slots Evolved 2 | . . 2 Power . | . . . Propulsion 1 | . . 1 Utility 1 | . . 1 Weapon . | . . . Parts Attached 36 | 7 8 21 Power 4 | 1 1 2 Engine 3 | 1 . 2 Core 1 | . 1 . Reactor . | . . . Propulsion 11 | 2 . 9 Treads 11 | 2 . 9 Leg . | . . . Wheel . | . . . Hover . | . . . Flight . | . . . Utility 8 | 2 4 2 Device 1 | 1 . . Storage 3 | 1 2 . Processor 3 | . 2 1 Hackware 1 | . . 1 Protection . | . . . Artifact . | . . . Weapon 13 | 2 3 8 Energy Gun 2 | . . 2 Energy Cannon 2 | . . 2 Ballistic Gun 5 | 2 2 1 Ballistic Cannon 4 | . 1 3 Launcher . | . . . Special Weapon . | . . . Impact Weapon . | . . . Slashing Weapon . | . . . Piercing Weapon . | . . . Special Melee Weapon . | . . . Unidentified Prototypes 4 | . . 4 Parts Lost 2 | . . 2 Power . | . . . Propulsion 2 | . . 2 Utility . | . . . Weapon . | . . . Highest Loss Streak 1 | . . 1 To Critical Strikes . | . . . Average Backups 15 | 3 11 17 Power 2 | 1 2 2 Propulsion 1 | 1 2 1 Utility 6 | . 4 7 Weapon 4 | . 1 5 Tool/Special . | . . . Unused Backups 26 | . 5 21 Power 6 | . 1 5 Propulsion 5 | . 4 1 Utility 9 | . . 9 Weapon 6 | . . 6 Tool/Special . | . . . Average Slot Usage (%) 98 | . 99 98 Engine 5 | . 4 5 Core 6 | . 9 5 Treads 30 | . 28 32 Device 1 | . 6 . Storage 11 | . 14 10 Processor 9 | . 7 10 Hackware 7 | . . 10 Energy Cannon 3 | . . 5 Ballistic Gun 11 | . 24 5 Ballistic Cannon 8 | . 2 10 Peak Build Rating 24 | 7 14 24 Average Rating 17 | 5 11 20 On Entrance 7 | . 7 14 Avg Prop Armor Cover (%) 8 | . . 8 Naked Turns . | . . . Heaviest Build 57 | 14 31 57 Greatest Support 66 | 40 40 66 Greatest Overweight (x) 4 | 4 . 2 Average Overweight (x) . | . . . Largest Inventory Capacity 20 | 8 20 20 Average Capacity 17 | 7 14 18 Most Carried 20 | 6 15 20 Average Carried 15 | 4 11 17 Final Capacity 20 | 8 15 20 Final Carried 18 | 6 15 18 Class Distribution -------------------- 71% | Mutant 28% | Scavenger-Mutant Dominant Class ---------------- Mutant | -10/Materials Mutant | -9/Materials Resources | -11 -10 -9 ----------- Run | Yrd Mat Mat Matter Collected 1227 | 142 419 666 Remotely . | . . . Salvage Created 1851 | 98 619 1134 Parts 115 | 4 38 73 Haulers Intercepted 4 | . 2 2 Recyclers Shooed 1 | . . 1 Parts Field Recycled . | . . . Retrieved Matter . | . . . Parts Self-Destructed . | . . . Prevented . | . . . Parts Restored . | . . . Kills | -11 -10 -9 ------- Run | Yrd Mat Mat Combat Hostiles Destroyed 37 | . 9 28 Guns 18 | . 6 12 Cannons 18 | . 3 15 Classes Destroyed 9 | 2 6 1 Worker 3 | . 3 . Tunneler 1 | 1 . . Hauler 4 | . 2 2 Recycler 5 | 1 2 2 Operator 1 | . 1 . Watcher 5 | . 2 3 Swarmer 10 | . 3 7 Grunt 19 | . 6 13 Sentry 8 | . . 8 Best Kill Streak 7 | 2 7 6 Combat Bots Only 6 | . 5 6 Max Kills in Single Turn 2 | 1 2 2 Gunslinging 1 | . . 1 Exploded . | . . . Melee . | . . . Uniques/NPCs Destroyed . | . . . Combat | -11 -10 -9 -------- Run | Yrd Mat Mat Hostile Shots Fired 222 | . 47 175 Missed 49 | . 12 37 Hits 173 | . 35 138 Projectile 173 | . 35 138 Critical Strikes 6 | . 1 5 Damage Taken 2273 | . 575 1698 Core 504 | . 96 408 Absorbed by Shields . | . . . Regen/Repaired (Parts) 642 | . . 642 Core Remaining (%) 80 | 100 61 . Volleys Fired 139 | 6 44 89 Largest 2 | 2 2 2 Hottest 105 | 40 50 105 Shots Fired 274 | 12 88 174 Gun 141 | 12 73 56 Cannon 133 | . 15 118 Launcher . | . . . Special . | . . . Kinetic 237 | 12 88 137 Thermal 37 | . . 37 Explosive . | . . . Electromagnetic . | . . . Robot Hit Streak 13 | 4 11 13 Robot Miss Streak 4 | 1 4 3 Penetration Max . | . . . Secondary Targets 2 | . 1 1 Max Gunslinging Chain 1 | . 1 1 Shots Hit Robots 179 | 10 57 112 Core Hits 75 | 4 30 41 Critical Kills 2 | . . 2 Critical Parts Destroyed . | . . . Critical Strikes 5 | . 1 4 Meltdown 1 | . . 1 Destroy 1 | . . 1 Blast 3 | . 1 2 Melee Attacks . | . . . Impact . | . . . Slashing . | . . . Piercing . | . . . Sneak Attacks . | . . . Combat Hostiles . | . . . Follow-up Attacks . | . . . Damage Inflicted 3320 | 105 939 2276 Guns 1351 | 105 561 685 Cannons 1784 | . 193 1591 Explosions 185 | . 185 . Melee . | . . . Ramming . | . . . Kinetic 2685 | 105 754 1826 Thermal 450 | . . 450 Explosive 185 | . 185 . Electromagnetic . | . . . Impact . | . . . Slashing . | . . . Piercing . | . . . Highest Corruption . | . . . Average Corruption . | . . . Corruption Purged . | . . . Corruption Blocked . | . . . Overload Shots . | . . . Overflow Damage 108 | . 82 26 Projectiles 35 | . 9 26 Explosions 73 | . 73 . Melee . | . . . Knockbacks 12 | . 4 8 Impact . | . . . Kinetic 10 | . 3 7 Secondary 2 | . 1 1 Self-Inflicted Damage 207 | . 207 . Shots 2 | . 2 . Rammed . | . . . Targets Rammed . | . . . Kicked . | . . . Crushed . | . . . Highest Temperature 715 | . 17 715 Average Temperature 155 | . 8 173 Received Heat Transfer 789 | . 168 621 Effects 34 | . . 34 Shutdowns 5 | . . 5 Interference 3 | . . 3 Matter Decay 2 | . . 2 Short Circuit 3 | . . 3 Damage (minor) 5 | . . 5 Damage (major) 13 | . . 13 Damage (core) 3 | . . 3 Siege Activations . | . . . Martial Activations . | . . . Shielding Activations . | . . . Robots Disrupted . | . . . Combat Hostiles . | . . . Robots Corrupted . | . . . Combat Hostiles . | . . . Parts Fried . | . . . Impact Corruptions . | . . . Robots Melted 1 | . . 1 Combat Hostiles 1 | . . 1 Parts Melted 1 | . . 1 Heat Transferred 814 | . . 814 Parts Sabotaged . | . . . Parts Stolen . | . . . Parts Stripped . | . . . Power Chain Reactions . | . . . Alert | -11 -10 -9 ------- Run | Yrd Mat Mat Maximum Alert Level 1 | . 1 1 Low Security (%) 74 | 100 76 72 Level 1 25 | . 23 27 Level 2 . | . . . Level 3 . | . . . Level 4 . | . . . Level 5 . | . . . High Security . | . . . Max Security . | . . . Peak Influence 285 | 5 252 285 Initial 52 | . . 52 Average 135 | . 127 146 Influence Increases 1233 | 10 396 827 Destroy 0b10 Robot/C 740 | . 180 560 Destroy 0b10 Robot/NC 95 | 10 50 35 Destroy Leader 178 | . 48 130 Successful Hack 25 | . 14 11 Disable Machine 135 | . 90 45 Destroy Structure 30 | . 14 16 Lose Combat Pursuer 30 | . . 30 Influence Decreases 951 | 10 272 669 Entered New Map 72 | . . 72 Time Decay 859 | 10 272 577 Lost Part 20 | . . 20 Squads Dispatched 2 | . 1 1 Investigation 1 | . . 1 Extermination . | . . . Reinforcement 1 | . 1 . Assault . | . . . Garrison . | . . . Intercept . | . . . Searches Triggered . | . . . Construction Impeded . | . . . Haulers Reinforced . | . . . Active Scanning Responses . | . . . Cargo Convoy Interrupts . | . . . Stealth | -11 -10 -9 --------- Run | Yrd Mat Mat Distress Signals 4 | . . 4 Communications Jammed . | . . . Distress Signals . | . . . Times Spotted 54 | . 17 37 Peak Tracking Total 6 | . 3 6 Tactical Retreats 2 | . . 2 Traps | -11 -10 -9 ------- Run | Yrd Mat Mat Traps Triggered . | . . . Indirectly . | . . . Trap Hack Attempts . | . . . Triggered . | . . . Disarmed . | . . . Reprogrammed . | . . . Reused . | . . . Traps Extracted . | . . . Installed . | . . . Triggered . | . . . Machines | -11 -10 -9 ---------- Run | Yrd Mat Mat Machines Disabled 9 | . 6 3 Max in Single Turn 2 | . 2 1 Machines Repaired . | . . . Machines Dismantled . | . . . Machines Sabotaged . | . . . Overloaded Fab Kills . | . . . Hacking | -11 -10 -9 --------- Run | Yrd Mat Mat Machines Accessed 9 | . 3 6 Terminals 7 | . 3 4 Fabricators . | . . . Repair Stations 1 | . . 1 Recycling Units . | . . . Scanalyzers 1 | . . 1 Garrison Access . | . . . Total Hacks 31 | . 4 27 Successful 20 | . 2 18 Failed 10 | . 2 8 Catastrophic 4 | . 1 3 Database Lockouts 1 | . . 1 Manual 14 | . 4 10 Terminals 13 | . 4 9 Fabricators . | . . . Repair Stations 11 | . . 11 Recycling Units . | . . . Scanalyzers 7 | . . 7 Garrison Access . | . . . Terminal Hacks 4 | . 2 2 Branch Access Points 1 | . 1 . Terminal Index 2 | . 1 1 Repair Station Index 1 | . . 1 Fabricator Hacks . | . . . Repair Station Hacks 10 | . . 10 Scan Component 6 | . . 6 Repair 4 | . . 4 Recycling Unit Hacks . | . . . Scanalyzer 6 | . . 6 Insert Component 1 | . . 1 Analyze 1 | . . 1 Retrieve Study 4 | . . 4 Garrison Access Hacks . | . . . Unauthorized Hacks . | . . . Terminals . | . . . Fabricators . | . . . Repair Stations . | . . . Recycling Units . | . . . Scanalyzers . | . . . Garrison Access . | . . . Data Cores Recovered 1 | . 1 . Used . | . . . Hacking Detections 8 | . 2 6 Full Trace Events 1 | . . 1 Feedback Events . | . . . Feedback Blocked . | . . . Robot Schematics Acquired . | . . . Robots Built . | . . . Authchips . | . . . Time . | . . . Total Robot Build Rating . | . . . Part Schematics Acquired 1 | . . 1 Parts Built . | . . . Authchips . | . . . Time . | . . . Total Part Build Rating . | . . . Part Studies Acquired 4 | . . 4 Parts Repaired 4 | . . 4 Time 116 | . . 116 Parts Recycled . | . . . Recycled Matter . | . . . Retrieved Matter . | . . . Retrieved Components . | . . . Parts Scanalyzed 1 | . . 1 Part Schematics Acquired 1 | . . 1 Parts Damaged . | . . . Bothacking | -11 -10 -9 ------------ Run | Yrd Mat Mat Used RIF Installer . | . . . Robots Hacked . | . . . Non-combat . | . . . Combat . | . . . Robot Hacks Applied . | . . . Relay Couplers Released . | . . . Fabnet Peak Effective % . | . . . Robots Rewired . | . . . Allies Hacked . | . . . Hacks Repelled . | . . . Allies | -11 -10 -9 -------- Run | Yrd Mat Mat Total Allies . | . . . Largest Group . | . . . Highest-Rated Group . | . . . Highest-Rated Ally . | . . . Total Orders . | . . . Ally Attacks . | . . . Total Damage . | . . . Kills . | . . . Allies Corrupted . | . . . Allies Melted . | . . . Intel | -11 -10 -9 ------- Run | Yrd Mat Mat Active Infowar (turns) 381 | 31 350 . Seismic 381 | 31 350 . Robot Analysis Total . | . . . Derelict Logs Recovered . | . . . Drone Launches . | . . . Drone Recoveries . | . . . Exploration | -11 -10 -9 ------------- Run | Yrd Mat Mat Turns Passed 2666 | 90 816 1760 Spaces Moved 1233 | 38 411 784 Core 14 | 14 . . Treads 1219 | 24 411 784 Legs . | . . . Wheels . | . . . Hover . | . . . Flight . | . . . Fastest Speed 50 | 50 160 160 Average Speed 161 | 151 160 162 Slowest Speed 250 | 250 160 240 Overloaded Moves . | . . . Propulsion Burnouts . | . . . Robots Hopped . | . . . Potential Cave-ins . | . . . Cave-ins Triggered . | . . . Exploration Rate (%) 45 | 3 74 60 Regions Visited 2 Branch Regions . Pre-discovered Areas . | . . . Known Exits Taken . | . . . Unknown Exits Taken 2 | 1 1 . Scrap Searched . | . . . Spaces Dug . | . . . Terrain Destroyed 27 | . 13 14 Melee . | . . . Projectile 14 | . . 14 AOE 13 | . 13 . Terrain Rammed . | . . . Walls Destroyed . | . . . Machines Disabled . | . . . Actions | -11 -10 -9 --------- Run | Yrd Mat Mat Total 1641 | 56 488 1097 Wait 145 | . . 145 Move 1231 | 37 410 784 Hop . | . . . Pick Up 49 | 6 14 29 Fast Attach 22 | 7 3 12 Attach 7 | . 2 5 Detach . | . . . Swap 14 | . 4 10 Drop 34 | . 11 23 Fire 139 | 6 44 89 Melee . | . . . Ram . | . . . Kick . | . . . Crush . | . . . Escape Stasis . | . . . Rewire . | . . . Trap . | . . . Miscellaneous . | . . . Route ------- -11/Scrapyard -10/Materials (discovered 5 exits: *Mat x3 / *Min x2) -9/Materials (discovered 2 exits: [*Mat x2]) History --------- Turn | Location | Event 19 | -11/Scrapyard | Discovered new exit (range 14) 91 | -11/Scrapyard | Entered Materials 326 | -10/Materials | Build established: Mutant 375 | -10/Materials | Discovered new exit (range 15) 490 | -10/Materials | Discovered new exit (range 16) 565 | -10/Materials | Discovered new exit (range 13) 619 | -10/Materials | Discovered new exit (range 12) 862 | -10/Materials | Identified exit to Mines 907 | -10/Materials | Entered another Materials area 907 | -9/Materials | Evolved 2 slots: Propulsion x1, Utility x1 1524 | -9/Materials | Discovered new exit (range 15) 1814 | -9/Materials | Build established: Scavenger-Mutant 2038 | -9/Materials | Central database locked down 2130 | -9/Materials | Discovered new exit (range 11) 2188 | -9/Materials | Repaired Lgt. Treads+ 2215 | -9/Materials | Repaired Lgt. Treads+ 2255 | -9/Materials | Repaired Assault Cannon 2451 | -9/Materials | Core integrity fell below 50% 2466 | -9/Materials | Core integrity fell below 20% 2576 | -9/Materials | Repaired Hcp. Storage Unit 2616 | -9/Materials | Build established: Mutant 2667 | -9/Materials | Destroyed by G-34 Mercenary with Small Laser Last Messages --------------- 02605_ Acquired Hrd. Light Armor Plating. 02608_ Acquired Imp. Ion Engine+. 02611_ Acquired Imp. Targeting Computer. 02614_ Acquired Particle Cannon+. 02617_ Acquired Rnf. Ion Engine. 02620_ Connecting with Repair Station... >>Scan(Broken Imp. Treads) Scanning Broken Imp. Treads... Ready to Repair: Broken Imp. Treads Rating: 2 Time: 44 02620_ ALERT: Suspicious activity at Repair Station M002. Dispatching Investigation squad. 02642_ G-34 Mercenary suffers critical hit (Destroy). 02642_ G-34 Mercenary destroyed. 02658_ R-06 Scavenger collects Ion Engine. 02659_ U-05 Engineer builds a Wall. 02662_ R-06 Scavenger collects Aluminum Leg. 02665_ R-06 Scavenger collects Heat Sink. Map ----- +----------------------------------------------------+ | ?????????????????????????????????????????????????? | | ?????????????????????????????????????????????????? | | ?????????????????????????????????????????????????? | | #+## ?????????????????????????????????????????? | | ?????????????????????????????????????????? | | ?????????????????????????????????????????? | | !! ?????????????????????????????????????????? | | ! ?????????????????????????????????????????? | | ??????????????????????????????????????????? | | ??????????????????????????????????????????? | | ??????????? ???????????????????????????? | | ?????????? #??????????????????????????? | | #??????????# #???????????????????####???? | | #??????????# #???????????????????# ???? | | ![[#??????????# #???????????????????#/ ???? | | ![[#??????????# ???????????????????# """ | | ^ [[ #??????????# #########???????????# """ | | #??????????# ##= #???????????# | | #??????????# ## #???????????# """ | | #??????????# ## """ #???????????# """ | | #??????????# ## """ #???????????# """ | | #??????????# ## """ #????????????? ? | | #?????????##u #? ??????????????###+##? | | ############ ####+########+######## #? | | % g % % % #? | | "T" %r @ m % ^ #? | | % "" ############+#########+### #? | | +######+### #???????# # % = # ##? | | = ## # #???????# # "" # ^==! #?? | | ## # #???????# """ # "" # ^=!! ### | | ## # #???????# "R # """ % # =! # | | ## # #???????# """ # # # | | T" ## # #???????# # !/= # | | "" ## # #???????######## *%# # | | ###### # #??????????????# ## ### + | | #????# # #??????????????############+### # | | ##???# # < #???????????????# # ### | | !#???###### #???????????????# """ """ + | | !#????????#####?????????????????""" """ # | | ##????????????????????????????# """ """ ###### | | #?????????????????????????????#*! ==#????? | | #????????????????????????????#[%[% ==#????? | | #????????????????????????????################????? | | #????????????????????????????????????????????????? | | | | | | | | | | | | | +----------------------------------------------------+ Best States ------------- Heat Dissipation 28 Energy Generation 14 Energy Capacity 280 Matter Stores 300 Matter Capacity 300 Sight Range 16 Terrain Scan Density 10 Evasion (%) 50 Targeting Accuracy 6 Recoil Reduction 3 Offensive Hacking 10 Item Schematics ----------------- Imp. Targeting Computer | -9/Materials | Scanalyzed Robot Schematics ------------------ None Fabricated ------------ Nothing Repaired ---------- Lgt. Treads | 65% | -9/Materials Lgt. Treads | 66% | -9/Materials Assault Cannon | 48% | -9/Materials Hcp. Storage Unit | 6% | -9/Materials Studied --------- Lgt. Treads | -9/Materials | Hacked Particle Cannon | -9/Materials | Hacked Hvy. Assault Rifle | -9/Materials | Hacked Imp. Ion Engine | -9/Materials | Hacked Alien Tech Used ----------------- None Achievements -------------- None Challenges ------------ None Game ------ Seed MicrowarpCargoRocket Manual? 0 Play Time 00:25:58 Cumulative 18.9 hours Start 2026.01.07 @ 22:45:26 End 2026.01.07 @ 23:09:05 Sessions 1 Manual Loads 0 Difficulty Rogue Special Mode None Game No. 36 Rogue 33 Adventurer 3 Explorer 0 Win Type - Total 0 Types 0/0/0/0/0/0/0/0/0/0 Lore% 9 Gallery% 22 Achievement% 15 Wizard Run 0 Options --------- Layout 0 ASCII 0 Keyboard 0 Movement Mouse Keybinds 0 Fullscreen 1 Font 18/SmallcapsGlow Map View 65x51 Zoom Use 0% Tactical HUD 1 Map Filters NONE Filters NONE Steam 1 RUN: 5f5e855e-f097-40e8-acc4-01150eab30de